Cogmind - Beta 11.1 @@@ ROGUE MODE // 2022.06.03 @ 10:20:36 Player: Exp. Geonium Core Result: Self-destructed Performance ------------- Evolutions (5) 2500 Regions Visited (7) 1400 Robots Destroyed (3) 15 Value Destroyed (91) 91 Prototype IDs (1) 20 Alien Tech Used (0) 0 Bonus (2487) 2487 TOTAL SCORE: 6513 Bonus ------- Pacifist 1987 Entered DSFs 500 Cogmind --------- Core Integrity 747/1000 Matter 163/300 Energy 100/100 System Corruption 0% Temperature Cool (0) Movement Core (50) Location -5/Factory Parts ------- > --- POWER (1) -------- (None) > --- PROPULSION (7) --- (None) > --- UTILITY (7) ------ Enhanced Optical Array > --- WEAPON (2) ------- (None) > --- INVENTORY (5) ---- Authchip [Propulsion] Authchip [Propulsion] Greatsword Peak State ------------ > --- POWER ------------ (None) > --- PROPULSION ------- VTOL Module > --- UTILITY ---------- Hacking Suite > --- WEAPON ----------- Greatsword > --- INVENTORY -------- Missile Launcher [Rating: 13] Favorites ----------- Power None Propulsion VTOL Module Wheel Compact Wheel Flight Unit VTOL Module Utility Enhanced Optical Array Processor Enhanced Optical Array Hackware Hacking Suite Weapon Mining Claw Launcher Missile Launcher Slashing Weapon Mining Claw Build | -11 -10 -9 -8 -7 -6 -6 -5 ------- Run | Scr Mat Mat Mat Fac Fac DSF Fac Slots Evolved 10 | . . 2 2 2 2 . 2 Power . | . . . . . . . . Propulsion 5 | . . . 2 1 1 . 1 Utility 5 | . . 2 . 1 1 . 1 Weapon . | . . . . . . . . Parts Attached 11 | 2 1 . . 5 . 2 1 Power . | . . . . . . . . Engine . | . . . . . . . . Core . | . . . . . . . . Reactor . | . . . . . . . . Propulsion 4 | 2 . . . 2 . . . Treads . | . . . . . . . . Leg . | . . . . . . . . Wheel 2 | 2 . . . . . . . Hover . | . . . . . . . . Flight 2 | . . . . 2 . . . Utility 2 | . . . . 1 . 1 . Device . | . . . . . . . . Storage . | . . . . . . . . Processor 1 | . . . . . . 1 . Hackware 1 | . . . . 1 . . . Protection . | . . . . . . . . Artifact . | . . . . . . . . Weapon 5 | . 1 . . 2 . 1 1 Energy Gun . | . . . . . . . . Energy Cannon . | . . . . . . . . Ballistic Gun . | . . . . . . . . Ballistic Cannon . | . . . . . . . . Launcher 1 | . . . . . . . 1 Special Weapon . | . . . . . . . . Impact Weapon . | . . . . . . . . Slashing Weapon 4 | . 1 . . 2 . 1 . Piercing Weapon . | . . . . . . . . Special Melee Weapon . | . . . . . . . . Unidentified Prototypes 1 | . . . . 1 . . . Parts Lost 5 | . . 2 . 1 . . 2 Power . | . . . . . . . . Propulsion 3 | . . 2 . . . . 1 Utility 1 | . . . . 1 . . . Weapon 1 | . . . . . . . 1 Highest Loss Streak 2 | . . 2 . 1 . . 2 To Critical Strikes . | . . . . . . . . Average Slot Usage (%) 15 | . 37 26 9 13 6 8 9 Wheel 5 | . 28 15 . . . . . Flight 2 | . . . . 5 6 6 2 Slashing Weapon 5 | . 9 11 9 5 . . . Naked Turns . | . . . . . . . . Heaviest Build 2 | . 2 2 2 2 . . . Greatest Support 4 | 3 3 3 3 4 4 4 4 Greatest Overweight (x) . | . . . . . . . . Average Overweight (x) . | . . . . . . . . Largest Inventory Capacity 5 | 5 5 5 5 5 5 5 5 Average Capacity 5 | 5 5 5 5 5 5 5 5 Most Carried 5 | 4 . 2 2 4 3 5 5 Average Carried 2 | 2 . 1 2 2 3 3 4 Final Capacity 5 | 5 5 5 5 5 5 5 5 Final Carried 5 | . . 2 2 3 3 5 4 Class Distribution -------------------- 100% | Mutant Dominant Class ---------------- Mutant | -10/Materials Mutant | -9/Materials Mutant | -8/Materials Mutant | -7/Factory Mutant | -6/Factory Mutant | -6/DSF Mutant | -5/Factory Resources | -11 -10 -9 -8 -7 -6 -6 -5 ----------- Run | Scr Mat Mat Mat Fac Fac DSF Fac Matter Collected 200 | 200 . . . . . . . Remotely . | . . . . . . . . Salvage Created 31 | . . . . . . . 31 Parts 1 | . . . . . . . 1 Haulers Intercepted . | . . . . . . . . Recyclers Shooed . | . . . . . . . . Parts Field Recycled . | . . . . . . . . Retrieved Matter . | . . . . . . . . Parts Self-Destructed . | . . . . . . . . Prevented . | . . . . . . . . Kills | -11 -10 -9 -8 -7 -6 -6 -5 ------- Run | Scr Mat Mat Mat Fac Fac DSF Fac Combat Hostiles Destroyed 3 | . . . . . . . 3 AOE 3 | . . . . . . . 3 Classes Destroyed 1 | . . . . . . . 1 Swarmer 3 | . . . . . . . 3 Best Kill Streak 3 | . . . . . . . 3 Combat Bots Only 3 | . . . . . . . 3 Max Kills in Single Turn 2 | . . . . . . . 2 Gunslinging . | . . . . . . . . Exploded 2 | . . . . . . . 2 Melee . | . . . . . . . . Uniques/NPCs Destroyed . | . . . . . . . . Combat | -11 -10 -9 -8 -7 -6 -6 -5 -------- Run | Scr Mat Mat Mat Fac Fac DSF Fac Damage Taken 707 | . . 147 47 101 . 48 364 Core 491 | . . 65 47 78 . 48 253 Absorbed by Shields . | . . . . . . . . Core Remaining (%) 92 | 100 100 83 91 88 . 94 . Volleys Fired 4 | . . . . . . . 4 Largest 1 | . . . . . . . 1 Hottest 36 | . . . . . . . 36 Shots Fired 4 | . . . . . . . 4 Gun . | . . . . . . . . Cannon . | . . . . . . . . Launcher 4 | . . . . . . . 4 Special . | . . . . . . . . Kinetic . | . . . . . . . . Thermal . | . . . . . . . . Explosive 4 | . . . . . . . 4 Electromagnetic . | . . . . . . . . Robot Hit Streak 1 | . . . . . . . 1 Robot Miss Streak 1 | . . . . . . . 1 Penetration Max . | . . . . . . . . Secondary Targets . | . . . . . . . . Shots Hit Robots 1 | . . . . . . . 1 Core Hits 3 | . . . . . . . 3 Critical Kills . | . . . . . . . . Critical Parts Destroyed . | . . . . . . . . Critical Strikes . | . . . . . . . . Melee Attacks 5 | . 1 . 1 2 . 1 . Impact . | . . . . . . . . Slashing 5 | . 1 . 1 2 . 1 . Piercing . | . . . . . . . . Sneak Attacks . | . . . . . . . . Combat Hostiles . | . . . . . . . . Follow-up Attacks . | . . . . . . . . Damage Inflicted 355 | . . . . . . . 355 Guns . | . . . . . . . . Cannons . | . . . . . . . . Explosions 355 | . . . . . . . 355 Melee . | . . . . . . . . Ramming . | . . . . . . . . Kinetic . | . . . . . . . . Thermal . | . . . . . . . . Explosive 355 | . . . . . . . 355 Electromagnetic . | . . . . . . . . Impact . | . . . . . . . . Slashing . | . . . . . . . . Piercing . | . . . . . . . . Highest Corruption . | . . . . . . . . Average Corruption . | . . . . . . . . Corruption Purged . | . . . . . . . . Corruption Blocked . | . . . . . . . . Overload Shots . | . . . . . . . . Overflow Damage 7 | . . . . . . . 7 Projectiles . | . . . . . . . . Explosions 7 | . . . . . . . 7 Melee . | . . . . . . . . Knockbacks . | . . . . . . . . Impact . | . . . . . . . . Kinetic . | . . . . . . . . Secondary . | . . . . . . . . Self-Inflicted Damage 33 | . . . . . . . 33 Shots 1 | . . . . . . . 1 Rammed . | . . . . . . . . Targets Rammed . | . . . . . . . . Kicked . | . . . . . . . . Crushed . | . . . . . . . . Highest Temperature . | . . . . . . . . Average Temperature . | . . . . . . . . Received Heat Transfer 117 | . . . 27 36 . . 54 Siege Activations . | . . . . . . . . Robots Corrupted . | . . . . . . . . Combat Hostiles . | . . . . . . . . Parts Fried . | . . . . . . . . Impact Corruptions . | . . . . . . . . Robots Melted . | . . . . . . . . Combat Hostiles . | . . . . . . . . Parts Melted . | . . . . . . . . Heat Transferred . | . . . . . . . . Parts Sabotaged . | . . . . . . . . Parts Stolen . | . . . . . . . . Parts Stripped . | . . . . . . . . Power Chain Reactions . | . . . . . . . . Missiles Intercepted . | . . . . . . . . Alert | -11 -10 -9 -8 -7 -6 -6 -5 ------- Run | Scr Mat Mat Mat Fac Fac DSF Fac Peak Influence 138 | . 3 45 48 108 52 40 138 Initial 52 | . . . 18 21 52 39 21 Average 30 | . 1 4 32 46 52 39 38 Maximum Alert Level . | . . . . . . . . Low Security (%) 100 | 100 100 100 100 100 100 100 100 Level 1 . | . . . . . . . . Level 2 . | . . . . . . . . Level 3 . | . . . . . . . . Level 4 . | . . . . . . . . Level 5 . | . . . . . . . . High Security . | . . . . . . . . Max Security . | . . . . . . . . Squads Dispatched 2 | . . . 2 . . . . Investigation 1 | . . . 1 . . . . Extermination . | . . . . . . . . Reinforcement 1 | . . . 1 . . . . Assault . | . . . . . . . . Garrison . | . . . . . . . . Intercept . | . . . . . . . . Searches Triggered . | . . . . . . . . Construction Impeded . | . . . . . . . . Haulers Reinforced . | . . . . . . . . Active Scanning Responses . | . . . . . . . . Cargo Convoy Interrupts . | . . . . . . . . Stealth | -11 -10 -9 -8 -7 -6 -6 -5 --------- Run | Scr Mat Mat Mat Fac Fac DSF Fac Distress Signals . | . . . . . . . . Communications Jammed . | . . . . . . . . Distress Signals . | . . . . . . . . Times Spotted 27 | . 2 5 4 6 . 1 9 Peak Tracking Total 8 | . 2 5 3 4 . 1 8 Tactical Retreats 3 | . . 1 . 1 . . 1 Traps | -11 -10 -9 -8 -7 -6 -6 -5 ------- Run | Scr Mat Mat Mat Fac Fac DSF Fac Traps Triggered 2 | . . . . 1 . . 1 Indirectly . | . . . . . . . . Trap Hack Attempts . | . . . . . . . . Triggered . | . . . . . . . . Disarmed . | . . . . . . . . Reprogrammed . | . . . . . . . . Reused . | . . . . . . . . Traps Extracted . | . . . . . . . . Installed . | . . . . . . . . Triggered . | . . . . . . . . Machines | -11 -10 -9 -8 -7 -6 -6 -5 ---------- Run | Scr Mat Mat Mat Fac Fac DSF Fac Machines Disabled 1 | . . . . 1 . . . Max in Single Turn 1 | . . . . 1 . . . Machines Sabotaged . | . . . . . . . . Garrisons Compromised . | . . . . . . . . Overloaded Fab Kills . | . . . . . . . . Hacking | -11 -10 -9 -8 -7 -6 -6 -5 --------- Run | Scr Mat Mat Mat Fac Fac DSF Fac Machines Accessed 6 | . . . 1 4 1 . . Terminals 6 | . . . 1 4 1 . . Fabricators . | . . . . . . . . Repair Stations . | . . . . . . . . Recycling Units . | . . . . . . . . Scanalyzers . | . . . . . . . . Garrison Access . | . . . . . . . . Total Hacks 15 | . . . 4 10 1 . . Successful 6 | . . . . 5 1 . . Failed 9 | . . . 4 5 . . . Catastrophic 1 | . . . . 1 . . . Database Lockouts . | . . . . . . . . Manual 11 | . . . 4 7 . . . Terminals 15 | . . . 4 10 1 . . Fabricators . | . . . . . . . . Repair Stations . | . . . . . . . . Recycling Units . | . . . . . . . . Scanalyzers . | . . . . . . . . Garrison Access . | . . . . . . . . Terminal Hacks 5 | . . . . 4 1 . . Open DSF 1 | . . . . . 1 . . Level Access Points 1 | . . . . 1 . . . Terminal Index 1 | . . . . 1 . . . Registered Components 1 | . . . . 1 . . . Zone Layout 1 | . . . . 1 . . . Fabricator Hacks . | . . . . . . . . Repair Station Hacks . | . . . . . . . . Recycling Unit Hacks . | . . . . . . . . Scanalyzer . | . . . . . . . . Garrison Access Hacks . | . . . . . . . . Unauthorized Hacks 1 | . . . . 1 . . . Terminals 1 | . . . . 1 . . . Botnet 1 | . . . . 1 . . . Fabricators . | . . . . . . . . Repair Stations . | . . . . . . . . Recycling Units . | . . . . . . . . Scanalyzers . | . . . . . . . . Garrison Access . | . . . . . . . . Data Cores Recovered . | . . . . . . . . Used . | . . . . . . . . Hacking Detections 5 | . . . 1 4 . . . Full Trace Events 1 | . . . 1 . . . . Feedback Events . | . . . . . . . . Feedback Blocked . | . . . . . . . . Robot Schematics Acquired . | . . . . . . . . Robots Built . | . . . . . . . . Authchips . | . . . . . . . . Time . | . . . . . . . . Total Robot Build Rating . | . . . . . . . . Part Schematics Acquired . | . . . . . . . . Parts Built . | . . . . . . . . Authchips . | . . . . . . . . Time . | . . . . . . . . Total Part Build Rating . | . . . . . . . . Parts Repaired . | . . . . . . . . Time . | . . . . . . . . Parts Recycled . | . . . . . . . . Recycled Matter . | . . . . . . . . Retrieved Matter . | . . . . . . . . Retrieved Components . | . . . . . . . . Parts Scanalyzed . | . . . . . . . . Part Schematics Acquired . | . . . . . . . . Parts Damaged . | . . . . . . . . Bothacking | -11 -10 -9 -8 -7 -6 -6 -5 ------------ Run | Scr Mat Mat Mat Fac Fac DSF Fac Used RIF Installer . | . . . . . . . . Robots Hacked . | . . . . . . . . Non-combat . | . . . . . . . . Combat . | . . . . . . . . Robot Hacks Applied . | . . . . . . . . Relay Couplers Released . | . . . . . . . . Fabnet Peak Effective % . | . . . . . . . . Robots Rewired . | . . . . . . . . Allies Hacked . | . . . . . . . . Hacks Repelled . | . . . . . . . . Allies | -11 -10 -9 -8 -7 -6 -6 -5 -------- Run | Scr Mat Mat Mat Fac Fac DSF Fac Total Allies . | . . . . . . . . Largest Group . | . . . . . . . . Highest-Rated Group . | . . . . . . . . Highest-Rated Ally . | . . . . . . . . Total Orders . | . . . . . . . . Ally Attacks . | . . . . . . . . Total Damage . | . . . . . . . . Kills . | . . . . . . . . Allies Corrupted . | . . . . . . . . Allies Melted . | . . . . . . . . Intel | -11 -10 -9 -8 -7 -6 -6 -5 ------- Run | Scr Mat Mat Mat Fac Fac DSF Fac Robot Analysis Total . | . . . . . . . . Derelict Logs Recovered . | . . . . . . . . Drone Launches . | . . . . . . . . Drone Recoveries . | . . . . . . . . Exploration | -11 -10 -9 -8 -7 -6 -6 -5 ------------- Run | Scr Mat Mat Mat Fac Fac DSF Fac Turns Passed 317 | 4 32 51 47 97 8 33 45 Spaces Moved 628 | 1 54 97 88 212 21 70 85 Core 318 | 1 54 97 88 45 . . 33 Treads . | . . . . . . . . Legs . | . . . . . . . . Wheels . | . . . . . . . . Hover . | . . . . . . . . Flight 310 | . . . . 167 21 70 52 Fastest Speed 35 | 50 50 50 50 35 35 35 35 Average Speed 42 | 50 50 50 50 38 35 35 40 Slowest Speed 50 | 50 50 50 50 50 35 35 50 Overloaded Moves . | . . . . . . . . Propulsion Burnouts . | . . . . . . . . Robots Hopped 10 | . . . . 7 . 2 1 Cave-ins Triggered . | . . . . . . . . Exploration Rate (%) 21 | 2 23 22 17 12 1 90 4 Regions Visited 7 Branch Regions . Pre-discovered Areas . | . . . . . . . . Known Exits Taken 2 | . . . . 1 1 . . Unknown Exits Taken 4 | 1 1 1 1 . . . . Scrap Searched . | . . . . . . . . Spaces Dug 15 | . 1 . . 1 . 1 12 Terrain Destroyed 35 | . 1 . . 1 . 1 32 Melee 3 | . 1 . . 1 . 1 . Projectile . | . . . . . . . . AOE 32 | . . . . . . . 32 Terrain Rammed . | . . . . . . . . Walls Destroyed . | . . . . . . . . Machines Disabled . | . . . . . . . . Actions | -11 -10 -9 -8 -7 -6 -6 -5 --------- Run | Scr Mat Mat Mat Fac Fac DSF Fac Total 645 | 5 55 98 88 217 20 73 89 Wait . | . . . . . . . . Move 602 | . 53 96 87 198 20 65 83 Hop 9 | . . . . 6 . 2 1 Pick Up 6 | . . 2 . 2 . 2 . Fast Attach 3 | . 1 . . 1 . 1 . Attach 8 | 2 . . . 4 . 1 1 Detach 3 | . . . . 2 . 1 . Swap . | . . . . . . . . Drop 5 | 3 . . . 2 . . . Fire 4 | . . . . . . . 4 Melee 5 | . 1 . 1 2 . 1 . Ram . | . . . . . . . . Kick . | . . . . . . . . Crush . | . . . . . . . . Escape Stasis . | . . . . . . . . Rewire . | . . . . . . . . Trap . | . . . . . . . . Miscellaneous . | . . . . . . . . Route ------- -11/Scrapyard -10/Materials -9/Materials (discovered 2 exits: *Mat / [*Min]) -8/Materials -7/Factory (discovered 4 exits: *Fac x4) -6/Factory -6/DSF -5/Factory History --------- Turn | Location | Event 1 | -11/Scrapyard | Released all parts (6) 5 | -11/Scrapyard | Discovered new exit (range 0) 5 | -11/Scrapyard | Entered Materials 27 | -10/Materials | Discovered new exit (range 16) 37 | -10/Materials | Entered another Materials area 37 | -9/Materials | Evolved 2 slots: Utility x2 64 | -9/Materials | Discovered new exit (range 11) 80 | -9/Materials | Discovered new exit (range 16) 88 | -9/Materials | Entered another Materials area 88 | -8/Materials | Evolved 2 slots: Propulsion x2 124 | -8/Materials | Discovered new exit (range 15) 135 | -8/Materials | Entered Factory 135 | -7/Factory | Evolved 2 slots: Propulsion x1, Utility x1 220 | -7/Factory | Discovered new exit (range 12) 220 | -7/Factory | Identified exit to Factory 232 | -7/Factory | Entered another Factory area 232 | -6/Factory | Evolved 2 slots: Propulsion x1, Utility x1 240 | -6/Factory | Identified exit to DSF 240 | -6/Factory | Entered DSF 254 | -6/DSF | Additional patrols routed to DSF 266 | -6/DSF | Discovered new exit (range 16) 273 | -6/DSF | Entered Factory 273 | -5/Factory | Evolved 2 slots: Propulsion x1, Utility x1 307 | -5/Factory | Build established: Mutant 318 | -5/Factory | Self-destructed Last Messages --------------- LOCATION=DSF AMBIENT_HEAT=-10 GOAL=ESCAPE 00254_ DSF_084 integrity compromised, routing additional patrols. 00256_ Acquired Authchip [Propulsion]. 00256_ Slug penetrates Wall. 00262_ Acquired Authchip [Propulsion]. 00266_ EXIT=FOUND 00267_ Acquired Enh. Optical Array. PARAMETERS=PROPULSION+1,UTILITY+1 LOCATION=UNKNOWN GOAL=ESCAPE 00292_ VTOL Module destroyed. 00296_ K-01 Serf collects debris. 00305_ Triggered Tesla Bomb Trap. 00305_ A bubble of electromagnetic force engulfs the area. 00305_ Manufacturing Mainframe disabled. 00305_ S-27 Virus destroyed. 00316_ Missile Launcher destroyed. 00316_ Destroyed Missile Launcher. Map ----- +----------------------------------------------------+ | ???????????????????????????# #???????# ### | | ???????????????????????????# #???????# | | ???????????????????????????# #???????# | | ???????????????????????????# #???????# | | ?????????????????########### #???????# | | ?????????????????# # #???????# | | ?????????????????# # #???????######### | | ?????????????????# # #????????# | | ?????????????????# #??????????] | | ?????????????????# #????????? | | ?????????????????# ] g #????????# " | | ?????????????????# = g #????????# " | | ?????????????????# #????????# | | ?????????????????####### +#+#####????# | | ???????????????????????? #????# [ " | | ???????????????????????? """" #????# " | | ???????????????????????? % " """" #????# | | ???????????????????????? % """" #????# ?? | | ???????????????????????? w"""" #????????? | | ???????????????????????? #????????#### | | ???????????????????????? """" #???????????? | | ????????????????????????# """" #???????????? | | ??????????????????????### " """" #???????????? | | ??????????????????????# "" """" #???????????? | | ??????????????????????# #???????????? | | ??????????????????????# @ #???????????? | | ??????????????????????# ##########???????????? | | ??????????????????????#### ##????????????????????? | | ??????????????????????????##?????????????????????? | | ?????????????????????????????????????????????????? | | ?????????????????????????????????????????????????? | | ?????????????????????????????????????????????????? | | ?????????????????????????????????????????????????? | | ?????????????????????????????????????????????????? | | ?????????????????????????????????????????????????? | | ?????????????????????????????????????????????????? | | ?????????????????????????????????????????????????? | | ?????????????????????????????????????????????????? | | ?????????????????????????????????????????????????? | | ?????????????????????????????????????????????????? | | ?????????????????????????????????????????????????? | | ?????????????????????????????????????????????????? | | ?????????????????????????????????????????????????? | | ?????????????????????????????????????????????????? | | ?????????????????????????????????????????????????? | | ?????????????????????????????????????????????????? | | ?????????????????????????????????????????????????? | | ?????????????????????????????????????????????????? | | ?????????????????????????????????????????????????? | | ?????????????????????????????????????????????????? | +----------------------------------------------------+ Best States ------------- Heat Dissipation 40 Energy Generation 5 Energy Capacity 100 Matter Stores 280 Matter Capacity 300 Sight Range 22 Terrain Scan Density 10 Evasion (%) 63 Offensive Hacking 10 Authchip Count 2 Item Schematics ----------------- None Robot Schematics ------------------ None Fabricated ------------ Nothing Alien Tech Used ----------------- None Achievements -------------- None Challenges ------------ None Game ------ Seed StasisAntimatterClaws Manual? 0 Play Time 00:10:26 Cumulative 198.9 hours Start 2022.06.03 @ 10:11:22 End 2022.06.03 @ 10:20:36 Sessions 1 Manual Loads 0 Difficulty Rogue Special Mode None Game No. 266 Rogue 266 Adventurer 0 Explorer 0 Win Type - Total 10 Types 8/0/1/1/0/0/0/0/0 Lore% 59 Gallery% 79 Achievement% 70 Wizard Run 0 Options --------- ASCII 0 Keyboard 0 Movement Numpad Keybinds 0 Fullscreen 1 Font 18/Terminus Map View 76x50 Tactical HUD 1 Map Filters NONE Filters NONE Steam 1 RUN: 33132a50-49ad-42ad-92c2-eb764d372b07